bitfinex-derivatives/quotes_BTCF0:USTF0_20230102
["timestamp","ask_amount","ask_price","bid_price","bid_amount"]
[1672688622997,0.05301459,16729.0,16728.0,0.90459886]
[1672688628893,0.05301459,16729.0,16728.0,0.60389886]
[1672688629308,0.05301459,16729.0,16728.0,0.90459886]
[1672688630561,0.05301459,16729.0,16728.0,0.81513542]
[1672688635408,0.05301459,16729.0,16728.0,0.81506105]
[1672688647907,0.05301459,16729.0,16728.0,0.51436105]
[1672688648117,0.05301459,16729.0,16728.0,0.81506105]
[1672688650849,0.05301459,16729.0,16728.0,0.51436105]
[1672688651166,0.05301459,16729.0,16728.0,0.81506105]
[1672688653067,0.05301459,16729.0,16728.0,0.51436105]
[1672688653280,0.05301459,16729.0,16728.0,0.81506105]
[1672688658223,0.05301459,16729.0,16728.0,0.51436105]
[1672688658432,0.05301459,16729.0,16728.0,0.81506105]
[1672688659909,0.05301459,16729.0,16728.0,0.51436105]
[1672688660431,0.05301459,16729.0,16728.0,0.81506105]
[1672688669050,0.05301459,16729.0,16728.0,0.51436105]
[1672688669260,0.05301459,16729.0,16728.0,0.81506105]
[1672688670097,0.05301459,16729.0,16728.0,0.51436105]
[1672688670306,0.05301459,16729.0,16728.0,0.81506105]
[1672688674405,0.05301459,16729.0,16728.0,2.14546105]
[1672688674723,0.05301459,16729.0,16728.0,2.90865672]
[1672688675147,0.05301459,16729.0,16728.0,3.67214639]
[1672688675570,0.05301459,16729.0,16728.0,3.67240539]
[1672688675791,0.05301459,16729.0,16728.0,3.49308149]
[1672688676097,0.05301459,16729.0,16728.0,3.4482258]
[1672688676298,0.05301459,16729.0,16728.0,3.5826674]
[1672688676939,0.05301459,16729.0,16728.0,2.90870711]
[1672688677766,0.05301459,16729.0,16728.0,2.60800711]
[1672688677990,0.05301459,16729.0,16728.0,2.90870711]
[1672688681554,0.05301459,16729.0,16728.0,2.60800711]
[1672688681975,0.05301459,16729.0,16728.0,2.90870711]
[1672688683026,0.05301459,16729.0,16728.0,2.86385385]
[1672688686815,0.05301459,16729.0,16728.0,2.14606105]
[1672688689645,0.05301459,16729.0,16728.0,2.14590662]
[1672688690492,0.05301459,16729.0,16728.0,2.28035268]
[1672688692914,0.05301459,16729.0,16728.0,1.97965268]
[1672688693229,0.05301459,16729.0,16728.0,2.28035268]
[1672688697959,0.05301459,16729.0,16728.0,2.23548665]
[1672688704586,0.05301459,16729.0,16728.0,1.93478665]
[1672688704791,0.05301459,16729.0,16728.0,2.23548665]
[1672688705427,0.05301459,16729.0,16728.0,2.95432936]
[1672688706163,0.05301459,16729.0,16728.0,6.72432936]
[1672688706370,0.05301459,16729.0,16728.0,6.5898833]
[1672688713209,0.05301459,16729.0,16728.0,6.81406416]
[1672688713839,0.05301459,16729.0,16728.0,6.63473899]
[1672688714250,0.05301459,16729.0,16728.0,7.25303767]
[1672688714457,0.05301459,16729.0,16728.0,8.80875681]
[1672688714675,0.05301459,16729.0,16728.0,8.80985681]
[1672688718882,0.05301459,16729.0,16728.0,9.03394906]
[1672688719095,0.05301459,16729.0,16728.0,8.80985681]
[1672688719717,0.05301459,16729.0,16728.0,9.03394764]
[1672688720669,0.004,16729.0,16728.0,8.61891975]
[1672688721505,0.3025,16733.0,16728.0,8.58791975]
[1672688721717,0.3025,16733.0,16732.0,1.2426]
[1672688721925,0.6,16734.0,16732.0,1.2426]
[1672688722135,0.6,16734.0,16733.0,0.9138]
[1672688722458,0.6,16734.0,16733.0,4.6838]
[1672688722667,1.05,16736.0,16733.0,4.6838]
[1672688722875,0.3,16735.0,16734.0,0.5092]
[1672688723191,0.3,16735.0,16734.0,0.6141]
[1672688724238,0.3,16735.0,16734.0,0.6201]
[1672688724239,0.383,16735.0,16734.0,0.6201]
[1672688728658,0.083,16735.0,16734.0,0.6201]
[1672688731391,0.283,16735.0,16734.0,0.6201]
[1672688733181,0.283,16735.0,16734.0,0.9208]
[1672688733915,0.083,16735.0,16734.0,0.9208]
[1672688734122,0.283,16735.0,16734.0,0.9208]
[1672688743790,0.283,16735.0,16734.0,0.92059924]
[1672688745148,0.283,16735.0,16734.0,0.61989924]
[1672688746626,0.283,16735.0,16734.0,0.51519924]
[1672688776552,0.083,16735.0,16734.0,0.51519924]
[1672688782518,0.083,16735.0,16734.0,0.81589924]
[1672688787129,0.083,16735.0,16734.0,0.92009924]
[1672688790486,0.083,16735.0,16734.0,0.6203]
[1672688790685,0.383,16735.0,16734.0,0.3196]
[1672688792580,0.383,16735.0,16734.0,0.31943898]
[1672688793009,0.383,16735.0,16734.0,0.21473898]
[1672688795729,0.6837,16735.0,16734.0,0.21473898]
[1672688796996,0.383,16735.0,16734.0,0.1102]
[1672688797206,0.6837,16735.0,16734.0,0.1102]
[1672688798146,0.383,16735.0,16734.0,0.1102]
[1672688807174,0.383,16735.0,16734.0,0.1107]
[1672688809168,0.6837,16735.0,16734.0,0.1107]
[1672688810741,0.383,16735.0,16734.0,0.1107]
[1672688810951,0.6837,16735.0,16734.0,0.1107]
[1672688813581,0.383,16735.0,16734.0,0.1107]
[1672688813792,0.083,16735.0,16734.0,0.1107]
[1672688813994,0.083,16735.0,16734.0,0.2153]
[1672688814201,0.083,16735.0,16734.0,0.516]
[1672688814417,0.083,16735.0,16734.0,0.6207]
[1672688814633,0.083,16735.0,16734.0,1.2489]
[1672688815259,0.07582921,16735.0,16734.0,1.8463]
[1672688815462,0.04110405,16735.0,16734.0,3.5209]
[1672688815674,4.05e-06,16735.0,16734.0,3.71520931]
[1672688816107,0.28719519,16739.0,16734.0,3.6256]
[1672688816307,0.28719519,16739.0,16738.0,0.3007]
[1672688816624,0.3273,16741.0,16739.0,0.3]
[1672688816831,6e-05,16744.0,16740.0,0.3007]
[1672688817048,6e-05,16744.0,16741.0,4.3982]
[1672688817248,0.90634,16748.0,16743.0,0.3]
[1672688817677,0.3007,16746.0,16743.0,0.3]
[1672688817894,0.3007,16746.0,16744.0,0.1047]
[1672688818110,0.3007,16746.0,16745.0,0.1042]
[1672688818111,0.6007,16746.0,16745.0,0.1042]
[1672688818419,0.4043,16745.0,16744.0,0.1042]
[1672688818635,0.3,16745.0,16743.0,6e-05]
[1672688818845,0.6007,16744.0,16743.0,6e-05]
[1672688819049,0.3,16743.0,16742.0,0.1047]
[1672688819261,0.3,16743.0,16740.0,0.1045]
[1672688819574,0.3007,16741.0,16740.0,0.1045]
[1672688819778,0.4054,16741.0,16737.0,0.1047]
[1672688819988,0.3007,16739.0,16736.0,0.1047]
[1672688820416,0.1047,16738.0,16736.0,0.1047]
[1672688820628,0.3007,16739.0,16737.0,0.4047]
[1672688821046,0.3007,16739.0,16738.0,0.1047]
[1672688821573,0.1045,16740.0,16738.0,0.1047]
[1672688821995,0.3,16739.0,16738.0,0.1047]
[1672688822620,0.3045,16740.0,16738.0,0.1047]
[1672688822830,0.2,16740.0,16738.0,0.1047]
[1672688823036,0.7044,16741.0,16739.0,0.1047]
[1672688823249,0.6007,16741.0,16739.0,0.2094]
[1672688823462,0.6007,16741.0,16740.0,0.4045]
[1672688824088,0.3,16741.0,16740.0,0.4045]
[1672688824518,0.3,16741.0,16740.0,0.4155]
[1672688824733,0.3,16741.0,16740.0,0.1155]
[1672688824935,0.6007,16741.0,16740.0,0.1155]
[1672688825990,0.7052,16741.0,16740.0,0.1157]
[1672688826305,0.7049,16741.0,16740.0,0.0106]
[1672688828299,0.7053,16741.0,16740.0,0.0106]
[1672688836811,0.6007,16741.0,16740.0,0.1148]
[1672688845029,0.3,16741.0,16740.0,0.1148]
[1672688845232,0.6007,16741.0,16740.0,0.1148]
[1672688847022,0.7047,16741.0,16740.0,0.1148]
[1672688849337,0.6007,16741.0,16740.0,0.0106]
[1672688861839,0.3,16741.0,16740.0,0.0106]
[1672688862051,0.6007,16741.0,16740.0,0.0106]
[1672688864051,0.7044,16741.0,16740.0,0.1153]
[1672688864669,0.4037,16741.0,16740.0,0.1153]
[1672688864882,0.7044,16741.0,16740.0,0.1153]
[1672688871717,0.7044,16741.0,16740.0,0.11517379]
[1672688886843,0.7045,16741.0,16740.0,0.01047379]
[1672688894947,0.4038,16741.0,16740.0,0.01047379]
[1672688895159,0.7045,16741.0,16740.0,0.21047379]
[1672688895578,0.7045,16741.0,16740.0,0.01047379]
[1672688900205,0.8097,16741.0,16736.0,0.1047]
[1672688900442,0.4054,16738.0,16736.0,0.1047]
[1672688900633,0.3007,16738.0,16737.0,0.404]
[1672688901794,0.3107,16738.0,16737.0,0.404]
[1672688902636,0.3107,16738.0,16737.0,0.413]
[1672688907355,0.01,16738.0,16737.0,0.413]
[1672688908512,0.01,16738.0,16737.0,0.5171]
[1672688922917,0.00981707,16738.0,16737.0,0.8178]
[1672688936691,0.00981707,16738.0,16737.0,0.5171]
[1672688937120,0.00981707,16738.0,16737.0,0.8178]
[1672688940587,0.00981707,16738.0,16737.0,1.4153]
[1672688947015,0.00981707,16738.0,16737.0,1.1146]
[1672688947219,0.00981707,16738.0,16737.0,1.4153]
[1672688951738,0.00981707,16738.0,16737.0,1.1146]
[1672688951944,0.00981707,16738.0,16737.0,1.4153]
[1672688957613,0.00981707,16738.0,16737.0,1.1146]
[1672688957829,0.00981707,16738.0,16737.0,1.4153]
[1672688962037,0.00981707,16738.0,16737.0,1.1146]
[1672688962247,0.00981707,16738.0,16737.0,1.4153]
[1672688963189,0.00981707,16738.0,16737.0,5.1853]
[1672688964874,0.00981707,16738.0,16737.0,4.8846]
[1672688965085,0.00981707,16738.0,16737.0,5.1853]
[1672688970975,0.00981707,16738.0,16737.0,5.18515536]
[1672688973609,0.00981707,16738.0,16737.0,4.88445536]
[1672688973818,0.00981707,16738.0,16737.0,5.18515536]
[1672688987901,0.4047,16743.0,16738.0,0.3]
[1672688988116,0.4047,16743.0,16741.0,0.1047]
[1672688988325,0.3,16742.0,16741.0,0.1047]
[1672688988846,0.3,16742.0,16741.0,3.8747]
[1672688989171,0.3,16742.0,16741.0,3.8857]
[1672688989582,0.3,16742.0,16741.0,3.8847]
[1672688991168,0.3,16742.0,16741.0,3.9891]
[1672688993686,0.3,16742.0,16741.0,4.2898]
[1672688995684,0.3,16742.0,16741.0,3.9891]
[1672688995895,0.3,16742.0,16741.0,4.2898]
[1672688996831,0.3,16742.0,16741.0,4.1851]
[1672689008818,0.3,16742.0,16741.0,0.4151]
[1672689009338,0.3,16742.0,16741.0,4.4851]
[1672689011764,0.3,16742.0,16741.0,4.1844]
[1672689015755,0.3,16743.0,16741.0,4.1844]
[1672689015971,0.3,16743.0,16742.0,0.4047]
[1672689017025,0.3,16743.0,16742.0,0.4157]
[1672689019020,0.3,16743.0,16742.0,0.4147]
[1672689027000,0.4047,16743.0,16742.0,0.4145]
[1672689027843,0.4047,16743.0,16742.0,4.1845]
[1672689028061,0.4047,16743.0,16742.0,0.4145]
[1672689034261,0.7054,16743.0,16742.0,0.4145]
[1672689034474,0.4047,16743.0,16742.0,0.4145]
[1672689034887,0.7054,16743.0,16742.0,0.4145]
[1672689036886,0.6007,16743.0,16742.0,0.414]
[1672689038360,0.3,16743.0,16742.0,0.414]
[1672689039201,0.3,16743.0,16742.0,0.41381181]
[1672689041312,0.3,16743.0,16742.0,0.41391181]
[1672689046974,0.3,16743.0,16742.0,0.41431181]
[1672689080759,0.4047,16744.0,16742.0,0.41431181]
[1672689080964,0.4047,16744.0,16743.0,0.1038]
[1672689082753,0.4047,16744.0,16743.0,0.1148]
[1672689088628,0.4047,16744.0,16743.0,0.11462898]
[1672689090418,0.7054,16744.0,16743.0,0.11462898]
[1672689093473,0.4047,16744.0,16743.0,0.11462898]
[1672689093792,0.7054,16744.0,16743.0,0.11462898]
[1672689096835,0.7052,16744.0,16743.0,0.011]
[1672689100724,0.4045,16744.0,16743.0,0.011]
[1672689100934,0.7052,16744.0,16743.0,0.011]
[1672689112810,0.4045,16744.0,16743.0,0.011]
[1672689113029,0.7052,16744.0,16743.0,0.011]
[1672689138133,0.4045,16744.0,16743.0,0.01083167]
[1672689138449,0.7052,16744.0,16743.0,0.01083167]
[1672689146858,0.6007,16744.0,16743.0,0.11483167]
[1672689147170,0.3,16744.0,16743.0,0.11483167]
[1672689156829,0.3,16744.0,16743.0,0.11553167]
[1672689165144,0.3,16744.0,16743.0,0.1047]
[1672689165350,0.3,16744.0,16743.0,0.1147]
[1672689166827,0.3,16744.0,16743.0,0.1145]
[1672689168182,0.7054,16745.0,16743.0,0.1145]
[1672689168497,0.7054,16745.0,16744.0,0.1]
[1672689170292,0.4054,16745.0,16744.0,0.1]
[1672689170504,0.4047,16746.0,16744.0,0.2047]
[1672689170817,0.3,16746.0,16745.0,0.2091]
[1672689171866,0.3,16746.0,16745.0,0.2201]
[1672689177016,0.3,16746.0,16745.0,0.1157]
[1672689177219,0.6007,16746.0,16745.0,0.1157]
[1672689180685,0.3007,16746.0,16745.0,0.1157]
[1672689184469,0.3007,16748.0,16745.0,0.2201]
[1672689184676,0.3007,16748.0,16747.0,0.1045]
[1672689184885,0.3007,16748.0,16747.0,0.3045]
[1672689186471,0.3007,16748.0,16747.0,0.104]
[1672689186676,0.4054,16748.0,16746.0,0.4047]
[1672689186996,0.4054,16748.0,16746.0,0.3]
[1672689186997,0.4047,16747.0,16746.0,0.3]
[1672689188143,0.4047,16747.0,16746.0,0.311]
[1672689188566,0.4047,16747.0,16746.0,0.01]
[1672689189405,0.4047,16747.0,16746.0,0.11]
[1672689192817,0.4047,16747.0,16746.0,0.10988932]
[1672689196891,0.4047,16747.0,16746.0,0.21458932]
[1672689206965,0.3,16747.0,16746.0,0.21458932]
[1672689236180,0.4054,16748.0,16746.0,0.21458932]
[1672689236388,0.2,16747.0,16746.0,0.21458932]
[1672689243954,0.2,16747.0,16746.0,0.21450269]
[1672689251853,0.5007,16747.0,16746.0,0.21450269]
[1672689254052,0.2,16747.0,16746.0,0.21450269]
[1672689254264,0.5007,16747.0,16746.0,0.21450269]
[1672689255733,0.2,16747.0,16746.0,0.21450269]
[1672689258884,0.5007,16747.0,16746.0,0.21450269]
[1672689262453,0.2,16747.0,16746.0,0.21450269]
[1672689287573,0.5007,16747.0,16746.0,0.21450269]
[1672689298504,0.5007,16747.0,16746.0,0.21426568]
[1672689313111,0.3007,16749.0,16747.0,0.2]
[1672689313436,0.3,16748.0,16747.0,0.3047]
[1672689314480,0.3,16748.0,16747.0,0.3157]
[1672689316900,0.4047,16748.0,16747.0,0.3154]
[1672689323300,0.4047,16748.0,16747.0,0.1154]
[1672689324670,0.7054,16748.0,16747.0,0.1154]
[1672689326991,0.7054,16748.0,16747.0,0.011]
[1672689328885,0.4047,16748.0,16747.0,0.011]
[1672689329195,0.7054,16748.0,16747.0,0.011]
[1672689339073,0.4047,16748.0,16747.0,0.011]
[1672689339285,0.7054,16748.0,16747.0,0.011]
[1672689344958,0.8101,16748.0,16744.0,0.3007]
[1672689345171,0.4047,16745.0,16743.0,0.4047]
[1672689345381,0.2,16744.0,16743.0,0.4047]
[1672689346637,0.211,16744.0,16743.0,0.7124]
[1672689352328,0.211,16744.0,16743.0,0.4117]
[1672689352532,0.211,16744.0,16743.0,0.7124]
[1672689352732,0.211,16744.0,16743.0,0.4117]
[1672689353054,0.211,16744.0,16743.0,0.7124]
[1672689353685,0.211,16744.0,16743.0,0.4117]
[1672689353887,0.211,16744.0,16743.0,0.7124]
[1672689354532,0.211,16744.0,16743.0,0.4117]
[1672689354743,0.211,16744.0,16743.0,0.7124]
[1672689355158,0.211,16744.0,16743.0,0.4117]
[1672689356107,0.211,16744.0,16743.0,0.7124]
[1672689358617,0.211,16744.0,16743.0,0.4117]
[1672689358837,0.211,16744.0,16743.0,0.7124]
[1672689371973,0.011,16744.0,16743.0,0.7124]
[1672689394999,0.011,16744.0,16743.0,0.6077]
[1672689395000,0.1147,16744.0,16743.0,0.6077]
[1672689397007,0.1151,16744.0,16743.0,0.6077]
[1672689397840,0.1151,16744.0,16743.0,0.307]
[1672689399945,0.1151,16744.0,16743.0,0.3068725]
[1672689402683,0.1151,16744.0,16743.0,0.6075725]
[1672689404674,0.1151,16744.0,16743.0,0.3068725]
[1672689406360,0.1151,16744.0,16743.0,4.0768725]
[1672689406984,0.1155,16744.0,16743.0,4.0768725]
[1672689409930,0.1155,16744.0,16743.0,4.3775725]
[1672689410989,0.1155,16744.0,16743.0,4.0768725]
[1672689411199,0.1155,16744.0,16743.0,4.3775725]
[1672689413932,0.1155,16744.0,16743.0,4.0768725]
[1672689415927,0.1155,16744.0,16743.0,4.3775725]
[1672689416875,0.1157,16744.0,16743.0,4.4822725]
[1672689418766,0.1157,16744.0,16743.0,4.1815725]
[1672689418973,0.1157,16744.0,16743.0,4.4822725]
[1672689426965,0.011,16744.0,16743.0,4.4815725]
[1672689428860,0.011,16744.0,16743.0,0.7115725]
[1672689429924,0.011,16744.0,16743.0,0.4108725]
[1672689430125,0.011,16744.0,16743.0,0.7115725]
[1672689430446,0.011,16744.0,16743.0,0.8161725]
[1672689431283,0.011,16744.0,16743.0,0.9202725]
[1672689431499,0.011,16744.0,16743.0,1.5177725]
[1672689431500,0.0001,16744.0,16743.0,1.5177725]
[1672689431704,0.3,16747.0,16744.0,0.3]
[1672689432027,0.3,16747.0,16746.0,0.1038]
[1672689432963,0.389,16747.0,16746.0,0.1038]
[1672689433590,0.389,16747.0,16746.0,0.1088]
[1672689436215,0.389,16747.0,16746.0,0.4095]
[1672689445060,0.389,16747.0,16746.0,0.7095]
[1672689447275,0.389,16747.0,16746.0,0.4088]
[1672689451157,0.389,16747.0,16746.0,0.7095]
[1672689451684,0.389,16747.0,16746.0,0.4088]
[1672689451901,0.389,16747.0,16746.0,0.7095]
[1672689452111,0.389,16747.0,16746.0,0.4088]
[1672689452426,0.389,16747.0,16746.0,0.7095]
[1672689456208,0.389,16747.0,16746.0,0.4088]
[1672689456416,0.389,16747.0,16746.0,0.7095]
[1672689457785,0.389,16747.0,16746.0,0.4088]
[1672689483336,0.389,16747.0,16746.0,0.40857582]
[1672689509211,0.389,16747.0,16746.0,0.70927582]
[1672689514560,0.274,16748.0,16747.0,0.3]
[1672689514773,0.274,16748.0,16747.0,0.4047]
[1672689515823,0.282,16748.0,16747.0,0.4147]
[1672689516877,0.3865,16748.0,16747.0,0.31]
[1672689520342,0.3865,16748.0,16747.0,0.01]
[1672689522657,0.3867,16748.0,16747.0,0.01]
[1672689524642,0.6874,16748.0,16747.0,0.01]
[1672689529059,0.3867,16748.0,16747.0,0.01]
[1672689529268,0.6874,16748.0,16747.0,0.01]
[1672689536732,0.3867,16748.0,16747.0,0.01]
[1672689539249,0.38646491,16748.0,16747.0,0.01]
[1672689576870,0.38586491,16748.0,16747.0,0.114]
[1672689584027,0.38586491,16748.0,16747.0,0.11376856]
[1672689594217,0.1121,16748.0,16747.0,0.11376856]
[1672689594840,0.008,16748.0,16747.0,0.11356856]
[1672689596530,0.007,16748.0,16747.0,0.1118]
[1672689598115,0.00685169,16748.0,16747.0,0.1118]
[1672689614803,0.00685169,16748.0,16747.0,0.2157]
[1672689616911,0.00685169,16748.0,16747.0,0.1119]
[1672689617746,0.00685169,16748.0,16747.0,0.4126]
[1672689645418,0.00685169,16748.0,16747.0,0.41246516]
[1672689655598,0.00685169,16748.0,16747.0,0.11176516]
[1672689655916,0.00685169,16748.0,16747.0,0.41246516]
[1672689669703,0.00685169,16748.0,16747.0,0.11176516]
[1672689669917,0.00685169,16748.0,16747.0,0.41246516]
[1672689676228,0.00685169,16748.0,16746.0,0.1047]
[1672689676450,0.71316,16747.0,16744.0,0.5975]
[1672689676756,0.71316,16747.0,16739.0,0.87098966]
[1672689676757,0.6007,16745.0,16739.0,0.6471]
[1672689676960,0.3007,16742.0,16740.0,0.3]
[1672689677383,0.9414,16741.0,16739.0,0.3229]
[1672689677590,1.2422,16740.0,16737.0,1.63959392]
[1672689677819,0.9282,16739.0,16738.0,0.3]
[1672689678119,1.2404,16739.0,16738.0,0.3]
[1672689678443,0.6133,16739.0,16738.0,0.3]
[1672689678634,0.5133,16739.0,16738.0,0.3]
[1672689678854,0.3133,16739.0,16738.0,0.3]
[1672689679069,0.6133,16739.0,16738.0,0.3]
[1672689679581,0.6303,16739.0,16738.0,0.302]
[1672689680328,0.6133,16739.0,16738.0,0.3]
[1672689680541,0.6303,16739.0,16738.0,0.302]
[1672689680951,0.6133,16739.0,16738.0,0.3]
[1672689681158,0.6313,16739.0,16738.0,0.302]
[1672689681379,0.6313,16739.0,16738.0,0.002]
[1672689681579,1.2596,16739.0,16738.0,0.002]
[1672689683513,0.632,16739.0,16738.0,0.002]
[1672689683679,0.624,16739.0,16738.0,0.002]
[1672689685992,0.9247,16739.0,16738.0,0.002]
[1672689693559,0.92451668,16739.0,16738.0,0.002]
[1672689697861,0.3,16738.0,16737.0,0.74139392]
[1672689698069,0.5082,16738.0,16737.0,0.74139392]
[1672689699540,0.5262,16738.0,16737.0,0.74239392]
[1672689701434,0.6307,16738.0,16737.0,0.74239392]
[1672689704381,0.9314,16738.0,16737.0,0.74239392]
[1672689705533,0.6307,16738.0,16737.0,0.74239392]
[1672689705749,0.9314,16738.0,16737.0,0.74239392]
[1672689707748,0.9314,16738.0,16737.0,0.001]
[1672689713109,0.9874,16738.0,16735.0,0.3]
[1672689713314,0.1047,16736.0,16735.0,0.3]
[1672689714051,0.1047,16736.0,16735.0,0.301]
[1672689714469,0.1047,16736.0,16735.0,0.3]
[1672689714676,0.1047,16736.0,16735.0,0.301]
[1672689714677,0.1227,16736.0,16735.0,0.301]
[1672689715735,0.2227,16736.0,16735.0,0.301]
[1672689716148,0.2227,16736.0,16735.0,0.001]
[1672689716368,0.5365,16736.0,16729.0,0.9197]
[1672689716572,0.5365,16736.0,16729.0,0.619]
[1672689716573,0.3007,16733.0,16729.0,0.619]
[1672689716783,0.2094,16730.0,16729.0,0.3]
[1672689717101,0.1047,16730.0,16729.0,0.3]
[1672689717302,0.1047,16730.0,16729.0,0.8975]
[1672689718352,0.1187,16730.0,16729.0,0.8975]
[1672689718562,0.1187,16730.0,16729.0,1.0019]
[1672689719400,0.1207,16730.0,16729.0,1.0019]
[1672689720245,0.1207,16730.0,16729.0,1.3026]
[1672689726868,0.1201,16730.0,16729.0,1.1982]
[1672689732550,0.1201,16730.0,16729.0,0.8975]
[1672689732749,0.1201,16730.0,16729.0,1.1982]
[1672689733275,0.1207,16730.0,16729.0,1.3029]
[1672689734016,0.1207,16730.0,16729.0,1.0029]
[1672689736845,0.016,16730.0,16729.0,1.0026]
[1672689738747,0.016,16730.0,16729.0,0.7019]
[1672689738952,0.016,16730.0,16729.0,1.0026]
[1672689742531,0.016,16730.0,16729.0,0.7019]
[1672689742748,0.016,16730.0,16729.0,1.0026]
[1672689751887,0.016,16730.0,16729.0,1.0029]
[1672689756408,0.116,16730.0,16729.0,1.0029]
[1672689757032,0.3245,16730.0,16728.0,0.8975]
[1672689757241,0.1043,16729.0,16728.0,0.8975]
[1672689758929,0.1203,16729.0,16728.0,0.8975]
[1672689760714,0.1203,16729.0,16727.0,0.4054]
[1672689760927,0.5094,16728.0,16727.0,0.3]
[1672689761133,0.016,16729.0,16727.0,0.6007]
[1672689761553,0.1,16730.0,16727.0,0.6007]
[1672689761764,0.015,16729.0,16727.0,0.6007]
[1672689761973,0.015,16729.0,16728.0,0.1046]
[1672689762186,0.1,16730.0,16728.0,0.1046]
[1672689762505,0.015,16729.0,16728.0,0.1046]
[1672689762715,0.2047,16730.0,16728.0,0.1046]
[1672689762926,0.016,16729.0,16728.0,0.1046]
[1672689764085,0.117,16730.0,16728.0,0.1046]
[1672689764298,0.117,16730.0,16729.0,0.1041]
[1672689764507,0.2047,16730.0,16728.0,0.1045]
[1672689764715,0.017,16729.0,16728.0,0.1045]
[1672689765035,0.2047,16730.0,16728.0,0.1045]
[1672689765248,0.2217,16730.0,16728.0,0.1045]
[1672689765768,0.2047,16730.0,16728.0,0.1045]
[1672689765978,0.017,16729.0,16728.0,0.1045]
[1672689766918,0.1047,16729.0,16727.0,0.7054]
[1672689767127,0.2,16728.0,16727.0,0.7054]
[1672689767338,0.1047,16729.0,16727.0,0.7054]
[1672689767761,0.1217,16729.0,16727.0,0.7054]
[1672689768291,0.1207,16729.0,16727.0,0.7054]
[1672689770912,0.1207,16729.0,16727.0,0.70529691]
[1672689775963,0.1207,16729.0,16727.0,0.40459691]
[1672689776276,0.1207,16729.0,16727.0,0.70529691]
[1672689779121,0.1207,16729.0,16727.0,0.40459691]
[1672689779331,0.1207,16729.0,16727.0,0.70529691]
[1672689779759,0.2,16728.0,16727.0,0.70529691]
[1672689780283,0.1207,16729.0,16727.0,0.70529691]
[1672689780905,0.016,16728.0,16727.0,0.70529691]
[1672689781326,0.1047,16729.0,16727.0,0.70529691]
[1672689781640,0.1207,16729.0,16727.0,0.70529691]
[1672689782691,0.016,16728.0,16727.0,0.70529691]
[1672689783119,0.1207,16729.0,16727.0,0.70529691]
[1672689783639,0.016,16728.0,16727.0,0.70529691]
[1672689784263,0.1207,16729.0,16727.0,0.70529691]
[1672689784688,0.3,16728.0,16727.0,0.70529691]
[1672689785524,0.316,16728.0,16727.0,0.70529691]
[1672689785953,0.316,16728.0,16727.0,0.60059691]
[1672689785954,0.4207,16728.0,16727.0,0.60059691]
[1672689787007,0.4205,16728.0,16727.0,0.60059691]
[1672689788475,0.4045,16728.0,16727.0,0.60059691]
[1672689788691,0.4205,16728.0,16727.0,0.60059691]
[1672689789010,0.4045,16728.0,16727.0,0.60059691]
[1672689789324,0.4215,16728.0,16727.0,0.60059691]
[1672689793734,0.4215,16728.0,16727.0,0.29989691]
[1672689795522,0.4215,16728.0,16725.0,0.3007]
[1672689795728,0.4215,16728.0,16726.0,0.3]
[1672689795729,0.317,16728.0,16726.0,0.3]
[1672689795937,0.1045,16727.0,16726.0,0.3]
[1672689796999,0.2092,16727.0,16726.0,0.3]
[1672689798892,0.2262,16727.0,16726.0,0.3]
[1672689799209,0.3305,16727.0,16723.0,0.3007]
[1672689799524,0.1047,16724.0,16723.0,0.3007]
[1672689799736,0.1047,16724.0,16723.0,0.6007]
[1672689800364,0.1187,16724.0,16723.0,0.6007]
[1672689805616,0.2187,16724.0,16723.0,0.6007]
[1672689806034,0.2187,16724.0,16723.0,0.3007]
[1672689806561,0.2187,16724.0,16721.0,0.4053]
[1672689806768,0.1047,16722.0,16721.0,0.3007]
[1672689808560,0.1187,16722.0,16720.0,0.3]
[1672689808875,0.1047,16721.0,16719.0,0.4054]
[1672689809188,0.1047,16721.0,16720.0,0.3]
[1672689810028,0.1187,16721.0,16720.0,0.3]
[1672689812349,0.1047,16721.0,16720.0,0.3]
[1672689812657,0.1187,16721.0,16720.0,0.3]
[1672689817076,0.1207,16721.0,16720.0,0.3]
[1672689819820,0.1207,16721.0,16720.0,0.29991997]
[1672689823705,0.1207,16721.0,16720.0,0.40431997]
[1672689823706,0.016,16721.0,16720.0,0.40431997]
[1672689825176,0.016,16721.0,16720.0,1.00211997]
[1672689826957,0.016,16721.0,16720.0,1.10681997]
[1672689827373,0.016,16721.0,16720.0,1.40681997]
[1672689831286,0.016,16721.0,16720.0,1.70751997]
[1672689838525,0.016,16721.0,16720.0,1.40751997]
[1672689838944,0.016,16721.0,16720.0,1.49699492]
[1672689839264,0.00338328,16721.0,16720.0,1.49699492]
[1672689839686,0.00338328,16721.0,16720.0,1.40751997]
[1672689839891,0.00338328,16721.0,16720.0,1.49699492]
[1672689840421,0.00338328,16721.0,16720.0,1.40751997]
[1672689842725,0.00338328,16721.0,16720.0,1.10681997]
[1672689842943,0.00338328,16721.0,16720.0,1.40751997]
[1672689844724,0.00338328,16721.0,16720.0,1.49699492]
[1672689845990,0.00338328,16721.0,16720.0,1.40751997]
[1672689847036,0.00338328,16721.0,16720.0,1.49699492]
[1672689855767,0.00338328,16721.0,16720.0,1.19629492]
[1672689855973,0.00338328,16721.0,16720.0,1.49699492]
[1672689858501,0.00338328,16721.0,16720.0,1.63140963]